Cogmind - Beta 16 @@@ ROGUE MODE // 2026.01.29 @ 23:43:56 Player: +Jones Result: Destroyed by as-41717 with Assembled Blade Performance ------------- Evolutions (0) 0 Regions Visited (2) 400 Robots Destroyed (39) 195 Value Destroyed (745) 745 Prototype IDs (0) 0 Alien Tech Used (0) 0 Bonus (-61) -61 TOTAL SCORE: 1279 Bonus ------- Friendly Fire -61 Cogmind --------- Core Integrity 0/250 Matter 206/300 Energy 61/125 System Corruption 2% Temperature Cool (78) Movement Core (500) Ox9 Location -10/Mines Parts ------- > --- POWER (1) -------- Light Ion Engine > --- PROPULSION (2) --- (None) > --- UTILITY (2) ------ Large Storage Unit Seismic Detector > --- WEAPON (2) ------- EM Pulse Gun EM Pulse Gun > --- INVENTORY (15) --- Light Treads Wheel Wheel High-capacity Storage Unit Huge Storage Unit Medium Matter Pod (100) Improved Terrain Scanner Seismic Detector Sensor Drone Bay EM Pulse Gun Grenade Launcher Grenade Launcher Datajack Mining Laser Mining Claw Peak State ------------ > --- POWER ------------ Light Ion Engine > --- PROPULSION ------- Light Treads Light Treads > --- UTILITY ---------- Large Storage Unit Seismic Detector > --- WEAPON ----------- EM Pulse Gun Particle Gun > --- INVENTORY -------- Light Treads High-capacity Storage Unit Improved Terrain Scanner Small Laser Light Assault Rifle Grenade Launcher Datajack Mining Laser [Rating: 9] Favorites ----------- Power Light Ion Engine Engine Light Ion Engine Propulsion Light Treads Treads Light Treads Utility Seismic Detector Device Seismic Detector Storage Large Storage Unit Weapon Particle Gun Energy Gun Particle Gun Ballistic Gun Assault Rifle Launcher Grenade Launcher Special Weapon Mining Laser Slashing Weapon Mining Claw Build | -11 -10 -10 ------- Run | Yrd Mat Min Slots Evolved . | . . . Power . | . . . Propulsion . | . . . Utility . | . . . Weapon . | . . . Parts Attached 18 | 6 9 3 Power 2 | 1 1 . Engine 2 | 1 1 . Core . | . . . Reactor . | . . . Propulsion 2 | 2 . . Treads 2 | 2 . . Leg . | . . . Wheel . | . . . Hover . | . . . Flight . | . . . Utility 3 | 2 1 . Device 1 | 1 . . Storage 2 | 1 1 . Processor . | . . . Hackware . | . . . Protection . | . . . Artifact . | . . . Weapon 11 | 1 7 3 Energy Gun 5 | 1 3 1 Energy Cannon . | . . . Ballistic Gun 2 | . 2 . Ballistic Cannon . | . . . Launcher 2 | . 1 1 Special Weapon 1 | . 1 . Impact Weapon . | . . . Slashing Weapon 1 | . . 1 Piercing Weapon . | . . . Special Melee Weapon . | . . . Unidentified Prototypes . | . . . Parts Lost 5 | . 2 3 Power 1 | . 1 . Propulsion 2 | . . 2 Utility . | . . . Weapon 2 | . 1 1 Highest Loss Streak 2 | . 2 2 To Critical Strikes . | . . . Average Backups 10 | 1 9 14 Power . | . . . Propulsion 1 | . 1 3 Utility 2 | . 2 4 Weapon 5 | 1 5 6 Tool/Special . | . . . Unused Backups 12 | . 1 11 Power . | . . . Propulsion 3 | . . 3 Utility 6 | . . 6 Weapon 2 | . 1 1 Tool/Special 1 | . . 1 Average Slot Usage (%) 95 | . 94 99 Engine 10 | . 9 14 Treads 27 | . 27 27 Device 13 | . 13 14 Storage 14 | . 14 14 Energy Gun 16 | . 17 15 Ballistic Gun 6 | . 5 8 Special Weapon 2 | . 3 . Slashing Weapon 1 | . . 3 Peak Build Rating 9 | 6 9 9 Average Rating 8 | 4 8 8 On Entrance 5 | . 6 9 Avg Prop Armor Cover (%) . | . . . Naked Turns . | . . . Heaviest Build 30 | 10 30 29 Greatest Support 40 | 40 40 40 Greatest Overweight (x) . | . . . Average Overweight (x) . | . . . Largest Inventory Capacity 15 | 8 15 15 Average Capacity 13 | 7 13 15 Most Carried 15 | 4 15 15 Average Carried 10 | 2 10 14 Final Capacity 15 | 8 15 15 Final Carried 15 | 4 15 15 Class Distribution -------------------- 85% | Mutant 14% | Scavenger-Mutant Dominant Class ---------------- Mutant | -10/Materials Mutant | -10/Mines Resources | -11 -10 -10 ----------- Run | Yrd Mat Min Matter Collected 950 | 260 412 278 Remotely . | . . . Salvage Created 1162 | 99 908 155 Parts 59 | 7 41 11 Haulers Intercepted 2 | . 2 . Recyclers Shooed 1 | . 1 . Parts Field Recycled . | . . . Retrieved Matter . | . . . Parts Self-Destructed . | . . . Prevented . | . . . Parts Restored . | . . . Kills | -11 -10 -10 ------- Run | Yrd Mat Min Combat Hostiles Destroyed 35 | . 20 15 Guns 22 | . 14 8 AOE 13 | . 6 7 Classes Destroyed 9 | 2 6 1 Worker 2 | . 2 . Tunneler 3 | 2 . 1 Hauler 2 | . 2 . Recycler 2 | 1 1 . Operator 1 | . 1 . Watcher 3 | . 3 . Swarmer 12 | . 6 6 Grunt 14 | . 14 . Assembled 9 | . . 9 Best Kill Streak 10 | 2 10 4 Combat Bots Only 6 | . 6 3 Max Kills in Single Turn 3 | 1 3 3 Gunslinging 1 | . . 1 Exploded 3 | . 3 3 Melee . | . . . Uniques/NPCs Destroyed . | . . . Combat | -11 -10 -10 -------- Run | Yrd Mat Min Hostile Shots Fired 122 | . 64 58 Missed 44 | . 22 22 Hits 78 | . 42 36 Melee 11 | . . 11 Projectile 67 | . 42 25 Critical Strikes 3 | . 2 1 Damage Taken 1137 | . 489 648 Core 262 | . 119 143 Absorbed by Shields . | . . . Regen/Repaired (Parts) 204 | . 204 . Core Remaining (%) 100 | 100 . . Volleys Fired 126 | 18 66 42 Largest 2 | 1 2 2 Hottest 105 | 40 105 85 Shots Fired 206 | 18 118 70 Gun 178 | 18 104 56 Cannon . | . . . Launcher 20 | . 6 14 Special 8 | . 8 . Kinetic 46 | . 23 23 Thermal 65 | 18 35 12 Explosive 20 | . 6 14 Electromagnetic 75 | . 54 21 Robot Hit Streak 19 | 8 19 9 Robot Miss Streak 8 | 2 4 8 Penetration Max . | . . . Secondary Targets 1 | . . 1 Max Gunslinging Chain 1 | . . 1 Shots Hit Robots 104 | 13 66 25 Core Hits 70 | 4 38 28 Critical Kills . | . . . Critical Parts Destroyed . | . . . Critical Strikes 1 | . 1 . Burn 1 | . 1 . Melee Attacks 1 | . . 1 Impact . | . . . Slashing 1 | . . 1 Piercing . | . . . Sneak Attacks . | . . . Combat Hostiles . | . . . Follow-up Attacks . | . . . Damage Inflicted 2464 | 152 1410 902 Guns 1389 | 152 907 330 Cannons . | . . . Explosions 1075 | . 503 572 Melee . | . . . Ramming . | . . . Kinetic 323 | . 183 140 Thermal 761 | 152 515 94 Explosive 868 | . 296 572 Electromagnetic 512 | . 416 96 Impact . | . . . Slashing . | . . . Piercing . | . . . Highest Corruption 2 | . 2 2 Average Corruption 1 | . 1 2 Corruption Purged . | . . . Corruption Blocked . | . . . Effects 10 | . 1 9 Message Errors 3 | . 1 2 Matter Fused 1 | . . 1 Heat Flow Errors 2 | . . 2 Energy Discharges 1 | . . 1 Data Loss (minor) 3 | . . 3 Overload Shots . | . . . Overflow Damage 10 | . 9 1 Projectiles . | . . . Explosions 10 | . 9 1 Melee . | . . . Knockbacks . | . . . Impact . | . . . Kinetic . | . . . Secondary . | . . . Self-Inflicted Damage 32 | . 7 25 Shots 2 | . 1 1 Rammed . | . . . Targets Rammed . | . . . Kicked . | . . . Crushed . | . . . Highest Temperature 296 | . 296 270 Average Temperature 75 | . 76 71 Received Heat Transfer 293 | . 273 20 Effects 1 | . . 1 Interference 1 | . . 1 Siege Activations . | . . . Martial Activations . | . . . Shielding Activations . | . . . Robots Disrupted . | . . . Combat Hostiles . | . . . Robots Corrupted . | . . . Combat Hostiles . | . . . Parts Fried 4 | . 4 . Impact Corruptions . | . . . Robots Melted . | . . . Combat Hostiles . | . . . Parts Melted 1 | . 1 . Heat Transferred 1461 | 325 914 222 Parts Sabotaged . | . . . Parts Stolen . | . . . Parts Stripped . | . . . Power Chain Reactions 2 | . 2 . Alert | -11 -10 -10 ------- Run | Yrd Mat Min Maximum Alert Level 1 | . 1 . Low Security (%) 95 | 100 93 100 Level 1 4 | . 6 . Level 2 . | . . . Level 3 . | . . . Level 4 . | . . . Level 5 . | . . . High Security . | . . . Max Security . | . . . Peak Influence 223 | 10 223 104 Initial 19 | . . 19 Average 75 | . 105 28 Influence Increases 950 | 15 715 220 Destroy 0b10 Robot/C 520 | . 400 120 Destroy 0b10 Robot/NC 65 | 15 45 5 Destroy Leader 110 | . 90 20 Successful Hack 43 | . 43 . Select Force Hacks 60 | . 60 . Disable Machine 30 | . 15 15 Destroy Structure 107 | . 47 60 Lose Combat Pursuer 15 | . 15 . Influence Decreases 950 | 15 664 271 Entered New Map 32 | . . 32 Time Decay 733 | 15 498 220 Lost Part 39 | . 20 19 Purge Threat 146 | . 146 . Squads Dispatched 4 | . 4 . Investigation 4 | . 4 . Extermination . | . . . Reinforcement . | . . . Assault . | . . . Garrison . | . . . Intercept . | . . . Searches Triggered . | . . . Construction Impeded . | . . . Haulers Reinforced . | . . . Active Scanning Responses . | . . . Cargo Convoy Interrupts . | . . . Stealth | -11 -10 -10 --------- Run | Yrd Mat Min Distress Signals 3 | . 3 . Communications Jammed . | . . . Distress Signals . | . . . Times Spotted 45 | . 27 18 Peak Tracking Total 6 | . 6 3 Tactical Retreats 2 | . 1 1 Traps | -11 -10 -10 ------- Run | Yrd Mat Min Traps Triggered 2 | . 2 . Indirectly . | . . . Trap Hack Attempts . | . . . Triggered . | . . . Disarmed . | . . . Reprogrammed . | . . . Reused . | . . . Traps Extracted . | . . . Installed . | . . . Triggered . | . . . Machines | -11 -10 -10 ---------- Run | Yrd Mat Min Machines Disabled 3 | . 1 2 Max in Single Turn 2 | . 1 2 Machines Repaired . | . . . Machines Dismantled . | . . . Machines Sabotaged . | . . . Overloaded Fab Kills . | . . . Hacking | -11 -10 -10 --------- Run | Yrd Mat Min Machines Accessed 12 | . 11 1 Terminals 8 | . 8 . Fabricators . | . . . Repair Stations 1 | . 1 . Recycling Units 2 | . 2 . Scanalyzers . | . . . Garrison Access . | . . . Total Hacks 49 | . 48 1 Successful 31 | . 30 1 Failed 17 | . 17 . Catastrophic 1 | . 1 . Database Lockouts 1 | . 1 . Manual 25 | . 25 . Terminals 33 | . 33 . Fabricators . | . . . Repair Stations 7 | . 7 . Recycling Units 8 | . 8 . Scanalyzers . | . . . Garrison Access . | . . . Terminal Hacks 10 | . 9 1 Robot Analysis 3 | . 3 . Open Door 1 | . . 1 Alert Level 1 | . 1 . Unreport Threat 1 | . 1 . Locate Traps 1 | . 1 . Dispatch Records 1 | . 1 . Reinforcement Status 1 | . 1 . Zone Layout 1 | . 1 . Fabricator Hacks . | . . . Repair Station Hacks 6 | . 6 . Scan Component 3 | . 3 . Repair 3 | . 3 . Recycling Unit Hacks 3 | . 3 . Retrieve Components 3 | . 3 . Scanalyzer . | . . . Garrison Access Hacks . | . . . Unauthorized Hacks 12 | . 12 . Terminals 8 | . 8 . Botnet 3 | . 3 . Skim 5 | . 5 . Fabricators . | . . . Repair Stations . | . . . Recycling Units 4 | . 4 . Reject 2 | . 2 . Tunnel 2 | . 2 . Scanalyzers . | . . . Garrison Access . | . . . Data Cores Recovered 1 | . 1 . Used . | . . . Hacking Detections 10 | . 10 . Full Trace Events 1 | . 1 . Feedback Events . | . . . Feedback Blocked . | . . . Robot Schematics Acquired . | . . . Robots Built . | . . . Authchips . | . . . Time . | . . . Total Robot Build Rating . | . . . Part Schematics Acquired . | . . . Parts Built . | . . . Authchips . | . . . Time . | . . . Total Part Build Rating . | . . . Part Studies Acquired . | . . . Parts Repaired 3 | . 3 . Time 78 | . 78 . Parts Recycled . | . . . Recycled Matter . | . . . Retrieved Matter . | . . . Retrieved Components 9 | . 9 . Parts Scanalyzed . | . . . Part Schematics Acquired . | . . . Parts Damaged . | . . . Bothacking | -11 -10 -10 ------------ Run | Yrd Mat Min Used RIF Installer . | . . . Robots Hacked . | . . . Non-combat . | . . . Combat . | . . . Robot Hacks Applied . | . . . Relay Couplers Released . | . . . Fabnet Peak Effective % . | . . . Robots Rewired . | . . . Allies Hacked . | . . . Hacks Repelled . | . . . Allies | -11 -10 -10 -------- Run | Yrd Mat Min Total Allies . | . . . Largest Group . | . . . Highest-Rated Group . | . . . Highest-Rated Ally . | . . . Total Orders . | . . . Ally Attacks . | . . . Total Damage . | . . . Kills . | . . . Allies Corrupted . | . . . Allies Melted . | . . . Intel | -11 -10 -10 ------- Run | Yrd Mat Min Active Infowar (turns) 2381 | 83 1560 738 Seismic 2381 | 83 1560 738 Robot Analysis Total 3 | . 3 . Derelict Logs Recovered 3 | . . 3 Drone Launches . | . . . Drone Recoveries . | . . . Exploration | -11 -10 -10 ------------- Run | Yrd Mat Min Turns Passed 2494 | 170 1586 738 Spaces Moved 1082 | 77 665 340 Core 6 | 6 . . Treads 1076 | 71 665 340 Legs . | . . . Wheels . | . . . Hover . | . . . Flight . | . . . Fastest Speed 50 | 50 160 160 Average Speed 159 | 151 160 160 Slowest Speed 160 | 160 160 160 Overloaded Moves . | . . . Propulsion Burnouts . | . . . Robots Hopped . | . . . Potential Cave-ins . | . . . Cave-ins Triggered . | . . . Exploration Rate (%) 56 | 7 98 65 Regions Visited 2 Branch Regions 1 Pre-discovered Areas 4 | . 3 1 Known Exits Taken . | . . . Unknown Exits Taken 2 | 1 1 . Scrap Searched 1 | . . 1 Spaces Dug 10 | . 9 1 Terrain Destroyed 136 | . 55 81 Melee 1 | . . 1 Projectile 6 | . 6 . AOE 129 | . 49 80 Terrain Rammed . | . . . Walls Destroyed . | . . . Machines Disabled . | . . . Actions | -11 -10 -10 --------- Run | Yrd Mat Min Total 1615 | 110 1046 459 Wait 337 | 6 271 60 Move 1080 | 76 664 340 Hop . | . . . Pick Up 22 | 4 16 2 Fast Attach 10 | 6 4 . Attach 4 | . 2 2 Detach . | . . . Swap 30 | . 19 11 Drop 5 | . 4 1 Fire 126 | 18 66 42 Melee 1 | . . 1 Ram . | . . . Kick . | . . . Crush . | . . . Escape Stasis . | . . . Rewire . | . . . Trap . | . . . Miscellaneous . | . . . Route ------- -11/Scrapyard -10/Materials (discovered 5 exits: *Mat x3 / *Min / *Sub) -10/Mines (discovered 1 exit: Mat) History --------- Turn | Location | Event 60 | -11/Scrapyard | Discovered new exit (range 15) 171 | -11/Scrapyard | Entered Materials 317 | -10/Materials | Build established: Mutant 561 | -10/Materials | Discovered new exit (range 13) 691 | -10/Materials | Discovered new exit (range 16) 1071 | -10/Materials | Central database locked down 1085 | -10/Materials | Learned location of 2 exits from Subcaves 1132 | -10/Materials | Learned 2 Mines zone layouts 1168 | -10/Materials | Learned Storage security intel 1194 | -10/Materials | Learned Storage garrison access intel 1201 | -10/Materials | Discovered new exit (range 16) 1209 | -10/Materials | Identified exit to Subcaves 1209 | -10/Materials | Identified exit to Materials 1219 | -10/Materials | Learned 4 Recycling zone layouts 1257 | -10/Materials | Learned location of Storage (-7) 1431 | -10/Materials | Build established: Scavenger-Mutant 1550 | -10/Materials | Repaired Lgt. Treads 1577 | -10/Materials | Repaired Lgt. Treads 1605 | -10/Materials | Repaired Seismic Detector 1757 | -10/Materials | Entered Mines 1797 | -10/Mines | Build established: Mutant 1814 | -10/Mines | Learned Materials terminal intel 1965 | -10/Mines | Assembled infested the area 1970 | -10/Mines | Assisted by a Guerilla fighting off Assembled 2256 | -10/Mines | Core integrity fell below 50% 2300 | -10/Mines | Learned Materials emergency access door positions 2354 | -10/Mines | Found the Drone Emporium 2367 | -10/Mines | Found Prototype Device 2494 | -10/Mines | Core integrity fell below 20% 2495 | -10/Mines | Destroyed by as-41717 with Assembled Blade Last Messages --------------- 02376_ as-56313 destroyed. 02380_ Destroyed Asb. Heavy Rifle. 02380_ as-02932 destroyed. 02388_ Acquired 3 matter. 02391_ The unstable cave ceiling collapses. 02401_ Acquired 21 matter. 02402_ The unstable cave ceiling collapses. 02412_ as-11079 destroyed. 02416_ Dropped Assault Rifle. 02418_ Acquired Seismic Detector. 02431_ Acquired 56 matter. 02455_ Acquired derelict log, extracted data. World map confirmed: -7/Storage. 02473_ Lgt. Treads destroyed. 02475_ The unstable cave ceiling collapses. 02477_ as-25109 destroyed. 02479_ as-94454 destroyed. 02482_ as-19957 destroyed. 02493_ Lgt. Treads destroyed. 02495_ System corrupted: Component data lost. Map ----- +----------------------------------------------------+ | ?????????????????????????????????????????????????? | | ?????????????????????????????????????????????????? | | ?????????????????????????????????????????????????? | | ?????????????????????????????????????????????????? | | ?????????????????????????????????????????????????? | | ?????????????????????????????????????????????????? | | ?????????????????????????????????????????????????? | | ?????????????????????????????????????????????????? | | ?????????????????????????????????????????????????? | | ?????????????????????????????????????????????????? | | ?????????????????????????????????????????????????? | | ?????????????????????????????????????????????????? | | ?????????????????????????????????????????????????? | | ?????????????????????????????????????????????????? | | ?????????????????????????????????????????????????? | | ??????????????????????????????????????????????###? | | ???????????????????????????????????###?????#### | | ?????????????????????????????????? #? #### | | #####??????????????????########?? = "%## | | | # #?????????????????## #? =*! % | | # #???????????????## # !%a ??????# | | ??# ####???######### % #???????????# | | ???# | [##### * ????????????# | | ???### = = ! ###????????????# | | ?????## #### ####### %a #??????????????????? | | ?###### #### #?????## @ #?????????????####### | | ## ## #??????# < ##?????????????# | | " ## #??????# ##??????????????# | | # ## #??????## ##???????????????# ##### | | #???????# ???????????????# #???? | | ## #???????#####??????????##### #???? | | # #??????????????????????# #???? | | # ### ???????????????????????# ### #???? | | ### ###? ???????????????????????# #?# #???? | | ###% #??? ???????????????????????# #?# ###?? | | ##??? #?????????????????????## ### ##? | | #???? #????????????????????## ## #? | | ### #???? ###??????????????????# #? | | #?### ##???? #??????????????????# ##? | | #???#####??? #??????????????????# ### | | #??####?### #??????????????????# ## | | #### ## ##?????????????????# | | #?????????????????## | | #### #???????????????????## | | ??## ## # #????????????????????# | | ?## ##?# ##???????????????????????## # | | ## ##??# #?????????????????????????##### ## | | # """ ##??# #?????????????????????????????###### | | # """ #### #??????????????????????????????????# | | # """ =*%=! #??????????????????????????????????# | +----------------------------------------------------+ Best States ------------- Heat Dissipation 25 Energy Generation 10 Energy Capacity 125 Matter Stores 300 Matter Capacity 300 Sight Range 16 Terrain Scan Density 10 Evasion (%) 40 Recoil Reduction 2 Item Schematics ----------------- None Robot Schematics ------------------ None Fabricated ------------ Nothing Repaired ---------- Lgt. Treads | 10% | -10/Materials Lgt. Treads | 52% | -10/Materials Seismic Detector | 40% | -10/Materials Studied --------- None Alien Tech Used ----------------- None Achievements -------------- None Challenges ------------ None Game ------ Seed TeslaSensorBotcube Manual? 0 Play Time 00:16:24 Cumulative 356.5 hours Start 2026.01.29 @ 23:27:42 End 2026.01.29 @ 23:43:56 Sessions 1 Manual Loads 0 Difficulty Rogue Special Mode None Game No. 293 Rogue 293 Adventurer 0 Explorer 0 Win Type - Total 2 Types 2/0/0/0/0/0/0/0/0/0 Lore% 62 Gallery% 70 Achievement% 51 Wizard Run 0 Options --------- Layout 1 ASCII 0 Keyboard 0 Movement Mouse Keybinds 0 Fullscreen 1 Font 32/SmallcapsGlow Map View 50x35 Zoom Use 0% Tactical HUD 1 Map Filters NONE Filters NONE Steam 1 RUN: 9372c79d-d40e-4e54-ba26-35574665fa64